fUST/lending_fUST_20250501
["ID","MTS","AMOUNT","RATE_DAILY","PERIOD"]
[359462354,1746040164108,-10315.1417226,0.000359,30]
[359462355,1746040167110,-290.0,0.000359,2]
[359462356,1746040167135,-4433.6311953,0.000359,30]
[359462373,1746040232571,-151.0,0.00018585,2]
[359462374,1746040232582,-501.55211731,0.000258,2]
[359462375,1746040232592,-501.03717307,0.000258,2]
[359462376,1746040232602,-160.0,0.00031782,2]
[359462377,1746040232614,-160.0,0.00031782,2]
[359462378,1746040232625,-6149.45218868,0.000338,2]
[359462379,1746040232635,-678.05912048,0.00033966,2]
[359462380,1746040232646,-500.77378023,0.0003405,5]
[359462381,1746040232657,-618.74600356,0.0003405,5]
[359462382,1746040232667,-500.0,0.0003405,5]
[359462383,1746040232679,-471.51310522,0.0003405,5]
[359462384,1746040232689,-500.0,0.0003405,3]
[359462385,1746040232699,-500.0,0.0003405,5]
[359462386,1746040232708,-500.0,0.0003405,5]
[359462387,1746040232719,-500.0,0.0003405,5]
[359462388,1746040232728,-500.0,0.0003405,5]
[359462389,1746040232737,-500.0,0.000341,5]
[359462390,1746040232747,-1700.0,0.00034291,60]
[359462391,1746040232758,-1094.2338427,0.00034794,120]
[359462392,1746040232767,-1700.0,0.00034839,60]
[359462393,1746040232777,-1700.0,0.00035387,60]
[359462394,1746040232786,-475.65295602,0.00035664,2]
[359462395,1746040232797,-400.0,0.00035899,2]
[359462396,1746040232806,-168.3888056,0.00035899,30]
[359462397,1746040232816,-7450.28667194,0.000359,30]
[359462398,1746040232826,-10490.97,0.000359,30]
[359462399,1746040232835,-1700.0,0.00035935,60]
[359462400,1746040232845,-151.0,0.00036,2]
[359462401,1746040232855,-288.7698945,0.00036049,2]
[359462402,1746040232864,-299.76163063,0.00036182,2]
[359462403,1746040232874,-171.740447,0.00036384,2]
[359462404,1746040232885,-1700.0,0.00036483,60]
[359462405,1746040232895,-500.0,0.00036495,7]
[359462406,1746040232905,-500.0,0.00036617,7]
[359462407,1746040232915,-21602.8852193,0.00036639,3]
[359462408,1746040232925,-781.46637868,0.00036639,3]
[359462409,1746040232935,-500.0,0.00036809,7]
[359462410,1746040232945,-500.0,0.00036959,7]
[359462411,1746040232956,-500.0,0.00036999,7]
[359462412,1746040232966,-1700.0,0.00037031,60]
[359462413,1746040232976,-165.0,0.0003726,5]
[359462414,1746040232987,-1558.23805295,0.00037588,2]
[359462415,1746040232997,-166.86671548,0.00037606,2]
[359462416,1746040233007,-2934.91775654,0.0003767,5]
[359462417,1746040233021,-1857.07627,0.0003767,5]
[359462418,1746040233035,-7708.00597346,0.0003767,5]
[359462419,1746040233046,-131.44794964,0.00037673,5]
[359462420,1746040233059,-368.55205036,0.00037673,5]
[359462421,1746040233069,-500.0,0.00037673,5]
[359462422,1746040233079,-500.71926778,0.00037673,5]
[359462423,1746040233089,-21602.8852193,0.00037678,3]
[359462424,1746040233100,-781.46637868,0.00037678,3]
[359462425,1746040233109,-12500.0,0.00037679,5]
[359462426,1746040233122,-12500.0,0.00037688,5]
[359462427,1746040233132,-10562.56025198,0.00037697,5]
[359462433,1746040238500,-206.37588587,0.00037669,15]
[359462434,1746040238510,-344.03080657,0.00037669,15]
[359462435,1746040238520,-500.0,0.00037669,15]
[359462436,1746040238530,-1937.43974802,0.00037697,5]
[359462437,1746040238540,-10490.97,0.000377,30]
[359462438,1746040238551,-12500.0,0.00037706,5]
[359462439,1746040238562,-1199.57937152,0.00037814,65]
[359462440,1746040238571,-500.0,0.00037973,5]
[359462441,1746040238581,-500.0,0.00037973,5]
[359462442,1746040238590,-501.45268968,0.00037973,5]
[359462443,1746040238600,-64808.655658,0.0003798,3]
[359462444,1746040238610,-2344.39913604,0.0003798,3]
[359462445,1746040238619,-1700.0,0.00038127,60]
[359462446,1746040238628,-5000.0,0.0003815,2]
[359462447,1746040238638,-840.90604152,0.00038163,2]
[359462448,1746040238651,-1797.87314945,0.00038202,2]
[359462449,1746040238662,-500.95926811,0.0003825,5]
[359462450,1746040238672,-502.21468671,0.0003825,5]
[359462451,1746040238682,-500.0,0.0003825,5]
[359462452,1746040238692,-611.17695204,0.0003825,5]
[359462453,1746040238702,-500.0,0.0003825,5]
[359462454,1746040238712,-500.70419105,0.0003825,5]
[359462455,1746040238721,-500.0,0.0003825,5]
[359462456,1746040238732,-151.0,0.00038293,2]
[359462457,1746040238742,-207.4,0.00038293,2]
[359462458,1746040238752,-151.0,0.00038293,2]
[359462459,1746040238763,-154.1030122,0.00038302,4]
[359462460,1746040238774,-666.17969576,0.00038342,7]
[359462461,1746040238784,-173.71841666,0.00038345,7]
[359462462,1746040238793,-21602.8852193,0.00038346,3]
[359462463,1746040238803,-781.46637868,0.00038346,3]
[359462464,1746040238813,-237.24559685,0.00038356,12]
[359462465,1746040238823,-400.0,0.00038356,12]
[359462466,1746040238832,-400.0,0.00038356,12]
[359462467,1746040238842,-400.0,0.00038356,12]
[359462468,1746040238851,-400.0,0.00038356,12]
[359462469,1746040238861,-400.0,0.00038356,12]
[359462470,1746040238871,-400.0,0.00038356,12]
[359462471,1746040238883,-400.0,0.00038356,12]
[359462472,1746040238893,-199.929124,0.00038356,12]
[359462473,1746040238902,-400.0,0.00038356,12]
[359462474,1746040238912,-400.0,0.00038356,12]
[359462475,1746040238923,-400.0,0.00038356,12]
[359462476,1746040238934,-400.0,0.00038356,12]
[359462477,1746040238943,-400.0,0.00038356,12]
[359462478,1746040238954,-400.0,0.00038356,12]
[359462479,1746040238964,-495.13939691,0.00038356,12]
[359462480,1746040238974,-400.0,0.00038356,12]
[359462481,1746040238984,-506.24296459,0.00038356,12]
[359462482,1746040238993,-400.0,0.00038356,12]
[359462483,1746040239003,-156.19,0.00038356,12]
[359462484,1746040239012,-464.32,0.00038356,12]
[359462485,1746040239022,-400.0,0.00038356,12]
[359462486,1746040239031,-784.43,0.00038356,2]
[359462487,1746040239041,-400.0,0.00038356,12]
[359462488,1746040239051,-400.0,0.00038356,12]
[359462489,1746040239061,-400.0,0.00038356,12]
[359462490,1746040239071,-326.31,0.00038356,12]
[359462491,1746040239081,-400.0,0.00038356,12]
[359462492,1746040239091,-400.0,0.00038356,12]
[359462493,1746040239100,-400.0,0.00038356,12]
[359462494,1746040239110,-400.0,0.00038356,12]
[359462495,1746040239122,-400.0,0.00038356,12]
[359462496,1746040239131,-352.4,0.00038356,12]
[359462497,1746040239141,-400.0,0.00038356,12]
[359462498,1746040239151,-564.4,0.00038356,12]
[359462499,1746040239160,-400.0,0.00038356,12]
[359462500,1746040239170,-500.0,0.00038356,12]
[359462501,1746040239180,-400.0,0.00038356,12]
[359462502,1746040239189,-255.12038607,0.00038356,12]
[359462503,1746040239199,-482.75,0.00038356,12]
[359462504,1746040239208,-400.0,0.00038356,12]
[359462505,1746040239218,-400.0,0.00038356,12]
[359462506,1746040239227,-400.0,0.00038356,12]
[359462507,1746040239236,-400.0,0.00038356,12]
[359462508,1746040239246,-400.0,0.00038356,12]
[359462509,1746040239255,-400.0,0.00038356,12]
[359462510,1746040239264,-400.0,0.00038356,12]
[359462511,1746040239275,-400.0,0.00038356,12]
[359462512,1746040239284,-393.3,0.00038356,12]
[359462513,1746040239295,-400.0,0.00038356,12]
[359462514,1746040239305,-400.0,0.00038356,12]
[359462515,1746040239315,-400.0,0.00038356,12]
[359462516,1746040239326,-400.0,0.00038356,12]
[359462517,1746040239336,-388.79043854,0.00038356,12]
[359462518,1746040239345,-637.32,0.00038356,12]
[359462519,1746040239357,-637.32,0.00038356,12]
[359462520,1746040239366,-637.32,0.00038356,12]
[359462521,1746040239376,-637.32,0.00038356,12]
[359462522,1746040239386,-637.32,0.00038356,12]
[359462523,1746040239396,-637.32,0.00038356,12]
[359462524,1746040239406,-637.32,0.00038356,12]
[359462525,1746040239416,-637.32,0.00038356,12]
[359462526,1746040239426,-400.0,0.00038356,12]
[359462527,1746040239436,-400.0,0.00038356,12]
[359462528,1746040239446,-400.0,0.00038356,12]
[359462529,1746040239455,-400.0,0.00038356,12]
[359462530,1746040239465,-400.0,0.00038356,12]
[359462531,1746040239476,-400.0,0.00038356,12]
[359462532,1746040239491,-228.16,0.00038356,12]
[359462533,1746040239500,-187.54746845,0.00038356,12]
[359462534,1746040239511,-400.0,0.00038356,12]
[359462535,1746040239520,-276.54829526,0.00038356,12]
[359462536,1746040239530,-400.0,0.00038356,12]
[359462537,1746040239540,-400.0,0.00038356,12]
[359462538,1746040239550,-400.0,0.00038356,12]
[359462539,1746040239561,-400.0,0.00038356,12]
[359462540,1746040239571,-400.0,0.00038356,12]
[359462541,1746040239581,-400.0,0.00038356,12]
[359462542,1746040239591,-400.0,0.00038356,12]
[359462543,1746040239601,-400.0,0.00038356,12]
[359462544,1746040239611,-400.0,0.00038356,12]
[359462545,1746040239622,-400.0,0.00038356,12]
[359462546,1746040239632,-527.19098022,0.00038356,12]
[359462547,1746040239642,-400.0,0.00038356,12]
[359462548,1746040239654,-400.0,0.00038356,12]
[359462549,1746040239664,-400.0,0.00038356,12]
[359462550,1746040239674,-400.0,0.00038356,12]
[359462551,1746040239685,-400.0,0.00038356,12]
[359462552,1746040239694,-400.0,0.00038356,12]
[359462553,1746040239703,-300.0,0.00038356,12]
[359462554,1746040239713,-400.0,0.00038356,12]
[359462555,1746040239723,-400.0,0.00038356,12]
[359462556,1746040239732,-400.0,0.00038356,12]
[359462557,1746040239741,-400.0,0.00038356,12]
[359462558,1746040239751,-400.0,0.00038356,12]
[359462559,1746040239760,-400.0,0.00038356,12]
[359462560,1746040239770,-400.0,0.00038356,12]
[359462561,1746040239779,-400.0,0.00038356,12]
[359462562,1746040239789,-400.0,0.00038356,12]
[359462563,1746040239799,-400.0,0.00038356,12]
[359462564,1746040239809,-400.0,0.00038356,12]
[359462565,1746040239818,-400.0,0.00038356,12]
[359462566,1746040239827,-400.0,0.00038356,12]
[359462567,1746040239837,-400.0,0.00038356,12]
[359462568,1746040239847,-400.0,0.00038356,12]
[359462569,1746040239857,-400.0,0.00038356,12]
[359462570,1746040239872,-400.0,0.00038356,12]
[359462571,1746040239885,-400.0,0.00038356,12]
[359462572,1746040239898,-400.0,0.00038356,12]
[359462573,1746040239911,-291.21,0.00038356,12]
[359462574,1746040239923,-400.0,0.00038356,12]
[359462575,1746040239936,-174.51,0.00038356,12]
[359462576,1746040239947,-500.0,0.00038356,12]
[359462577,1746040239958,-400.0,0.00038356,12]
[359462578,1746040239968,-400.0,0.00038356,12]
[359462579,1746040239979,-400.0,0.00038356,12]
[359462580,1746040239992,-400.0,0.00038356,12]
[359462581,1746040240004,-400.0,0.00038356,12]
[359462582,1746040240016,-536.08336848,0.00038356,12]
[359462585,1746040240027,-500.0,0.00038356,12]
[359462587,1746040240039,-400.0,0.00038356,12]
[359462589,1746040240051,-400.0,0.00038356,12]
[359462590,1746040240062,-204.74399732,0.00038356,12]
[359462591,1746040240074,-400.0,0.00038356,12]
[359462592,1746040240088,-200.0,0.00038356,12]
[359462593,1746040240099,-400.0,0.00038356,12]
[359462594,1746040240110,-457.3,0.00038356,12]
[359462595,1746040240121,-457.3,0.00038356,12]
[359462596,1746040240133,-457.3,0.00038356,12]
[359462597,1746040240144,-400.0,0.00038356,12]
[359462598,1746040240156,-457.3,0.00038356,12]
[359462599,1746040240168,-457.3,0.00038356,12]
[359462600,1746040240179,-400.0,0.00038356,12]
[359462601,1746040240190,-400.0,0.00038356,12]
[359462602,1746040240201,-400.0,0.00038356,12]
[359462603,1746040240212,-400.0,0.00038356,12]
[359462604,1746040240223,-400.0,0.00038356,12]
[359462605,1746040240236,-400.0,0.00038356,12]
[359462606,1746040240247,-400.0,0.00038356,12]
[359462607,1746040240259,-400.0,0.00038356,12]
[359462608,1746040240270,-258.51830241,0.00038356,12]
[359462609,1746040240282,-150.0,0.00038373,5]
[359462610,1746040240293,-510.37670692,0.00038373,5]
[359462611,1746040240305,-500.0,0.00038373,5]
[359462612,1746040240315,-500.0,0.00038373,5]
[359462613,1746040240326,-500.0,0.00038373,5]
[359462614,1746040240337,-531.26132297,0.00038373,5]
[359462615,1746040240348,-166.86671548,0.00038421,2]
[359462616,1746040240358,-560.0,0.00038456,5]
[359462617,1746040240368,-502.13160974,0.00038618,7]
[359462618,1746040240378,-200.0,0.00038646,120]
[359462619,1746040240388,-21602.8852193,0.0003869,3]
[359462620,1746040240400,-781.46637868,0.0003869,3]
[359462621,1746040240411,-49013.05,0.000387,30]
[359462622,1746040240422,-6149.45218868,0.000388,2]
[359462623,1746040240434,-500.0,0.00038896,7]
[359462624,1746040240445,-182.04053198,0.00038915,2]
[359462625,1746040240456,-250.0,0.00038921,5]
[359462626,1746040240467,-544.213146,0.00038933,2]
[359462627,1746040240478,-100000.0,0.0003899,2]
[359462628,1746040240494,-637.32,0.00038999,12]
[359462629,1746040240505,-500.0,0.00039142,7]
[359462630,1746040240517,-155.0,0.00039178,2]
[359462631,1746040240532,-1700.0,0.00039223,60]
[359462632,1746040240543,-166.86671548,0.00039235,2]
[359462633,1746040240554,-10490.97,0.000395,30]
[359462634,1746040240567,-500.0,0.00039529,5]
[359462635,1746040240579,-1000.0,0.00039529,5]
[359462636,1746040240591,-501.99906723,0.00039529,5]
[359462637,1746040240603,-501.4392907,0.00039529,5]
[359462638,1746040240615,-1000.0,0.00039529,5]
[359462639,1746040240625,-1001.78431801,0.00039529,5]
[359462640,1746040240635,-1001.63833003,0.00039529,5]
[359462641,1746040240646,-503.04127026,0.00039529,5]
[359462642,1746040240657,-501.65695482,0.00039529,5]
[359462643,1746040240667,-1000.0,0.00039579,5]
[359462644,1746040240677,-726.98149845,0.000396,60]
[359462645,1746040240687,-215.0738,0.00039662,2]
[359462646,1746040240699,-500.0,0.00039694,7]
[359462647,1746040240710,-65598.53808,0.00039904,4]
[359462648,1746040240722,-21602.8852193,0.00039905,3]
[359462649,1746040240733,-1562.93275736,0.00039905,3]
[359462650,1746040240746,-1562.93275736,0.00039909,3]
[359462651,1746040240759,-400.0,0.00039914,12]
[359462652,1746040240771,-400.0,0.00039914,12]
[359462653,1746040240783,-400.0,0.00039914,12]
[359462654,1746040240794,-400.0,0.00039914,12]
[359462655,1746040240804,-214.42,0.00039914,12]
[359462656,1746040240815,-400.0,0.00039914,12]
[359462657,1746040240825,-400.0,0.00039914,12]
[359462658,1746040240836,-281.04,0.00039914,12]
[359462659,1746040240846,-400.0,0.00039914,12]
[359462660,1746040240857,-247.76,0.00039914,12]
[359462661,1746040240868,-400.0,0.00039914,12]
[359462662,1746040240881,-294.36,0.00039914,12]
[359462663,1746040240891,-400.0,0.00039914,12]
[359462664,1746040240902,-400.0,0.00039914,12]
[359462665,1746040240913,-224.55,0.00039914,12]
[359462666,1746040240923,-400.0,0.00039914,12]
[359462667,1746040240934,-301.91,0.00039914,12]
[359462668,1746040240945,-167.43,0.00039914,12]
[359462669,1746040240956,-400.0,0.00039914,12]
[359462670,1746040240967,-196.11,0.00039914,12]
[359462671,1746040240978,-400.0,0.00039914,12]
[359462672,1746040240989,-417.65,0.00039914,12]
[359462673,1746040240999,-400.0,0.00039914,12]
[359462674,1746040241010,-400.0,0.00039914,12]
[359462675,1746040241020,-332.75040641,0.00039914,12]
[359462676,1746040241031,-420.86,0.00039914,12]
[359462677,1746040241041,-400.0,0.00039914,12]
[359462678,1746040241051,-400.0,0.00039914,12]
[359462679,1746040241061,-400.0,0.00039914,12]
[359462680,1746040241072,-637.32,0.00039914,12]
[359462681,1746040241082,-637.32,0.00039914,12]
[359462682,1746040241093,-637.32,0.00039914,12]
[359462683,1746040241103,-400.0,0.00039914,12]
[359462684,1746040241114,-392.91,0.00039914,12]
[359462685,1746040241124,-400.0,0.00039914,12]
[359462686,1746040241135,-400.0,0.00039914,12]
[359462687,1746040241146,-400.0,0.00039914,12]
[359462688,1746040241156,-400.0,0.00039914,12]
[359462689,1746040241167,-400.0,0.00039914,12]
[359462690,1746040241178,-400.0,0.00039914,12]
[359462691,1746040241188,-400.0,0.00039914,12]
[359462692,1746040241198,-400.0,0.00039914,12]
[359462693,1746040241209,-400.0,0.00039914,12]
[359462694,1746040241220,-400.0,0.00039914,12]
[359462695,1746040241230,-354.77679867,0.00039914,12]
[359462696,1746040241241,-400.0,0.00039914,12]
[359462697,1746040241253,-400.0,0.00039914,12]
[359462698,1746040241264,-521.1,0.00039914,12]
[359462699,1746040241274,-400.0,0.00039914,12]
[359462700,1746040241285,-400.0,0.00039914,12]
[359462701,1746040241295,-400.0,0.00039914,12]
[359462702,1746040241314,-400.0,0.00039914,12]
[359462703,1746040241328,-400.0,0.00039914,12]
[359462704,1746040241340,-457.3,0.00039914,12]
[359462705,1746040241352,-457.3,0.00039914,12]
[359462706,1746040241364,-457.3,0.00039914,12]
[359462707,1746040241377,-52960.23464866,0.00039915,2]
[359462708,1746040241388,-637.32,0.00039918,12]
[359462709,1746040241400,-637.32,0.00039918,12]
[359462710,1746040241411,-13512.35,0.00039918,15]
[359462711,1746040241423,-44927.90182576,0.00039919,2]
[359462712,1746040241436,-60937.8555562,0.00039919,2]
[359462713,1746040241447,-500.0,0.00039977,7]
[359462714,1746040241459,-637.32,0.00039988,12]
[359462715,1746040241470,-400.0,0.00039989,12]
[359462716,1746040241484,-400.0,0.00039989,12]
[359462717,1746040241495,-400.0,0.00039989,12]
[359462718,1746040241673,-341.01,0.00039989,12]
[359462719,1746040241686,-400.0,0.00039989,12]
[359462720,1746040241696,-400.0,0.00039989,12]
[359462721,1746040241706,-308.73,0.00039989,12]
[359462722,1746040241715,-400.0,0.00039989,12]
[359462723,1746040241725,-400.0,0.00039989,12]
[359462724,1746040241734,-400.0,0.00039989,12]
[359462725,1746040241745,-400.0,0.00039989,12]
[359462726,1746040241754,-399.58138627,0.00039989,12]
[359462727,1746040241764,-637.32,0.00039989,12]
[359462728,1746040241773,-637.32,0.00039989,12]
[359462729,1746040241783,-637.32,0.00039989,12]
[359462730,1746040241793,-637.32,0.00039989,12]
[359462731,1746040241802,-637.32,0.00039989,12]
[359462732,1746040241811,-637.32,0.00039989,12]
[359462733,1746040241821,-637.32,0.00039989,12]
[359462734,1746040241830,-637.32,0.00039989,12]
[359462735,1746040241840,-637.34336123,0.00039989,12]
[359462736,1746040241850,-400.0,0.00039989,12]
[359462737,1746040241860,-400.0,0.00039989,12]
[359462738,1746040241873,-400.0,0.00039989,12]
[359462739,1746040241883,-400.0,0.00039989,12]
[359462740,1746040241893,-331.1486,0.00039989,12]
[359462741,1746040241904,-400.0,0.00039989,12]
[359462742,1746040241913,-400.0,0.00039989,12]
[359462743,1746040241922,-400.0,0.00039989,12]
[359462744,1746040241932,-531.36,0.00039989,12]
[359462745,1746040241943,-457.3,0.00039989,12]
[359462746,1746040241953,-457.3,0.00039989,12]
[359462747,1746040241963,-457.3,0.00039989,12]
[359462748,1746040241973,-457.3,0.00039989,12]
[359462749,1746040241982,-457.3,0.00039989,12]
[359462750,1746040241992,-158.0,0.0004,22]
[359462751,1746040242002,-671.57,0.0004,2]
[359462752,1746040242012,-1000.0,0.0004,120]
[359462753,1746040242022,-166.86671548,0.0004005,2]
[359462754,1746040242032,-312.9033797,0.00040137,30]
[359462755,1746040242043,-567.0839203,0.00040137,30]
[359462756,1746040242052,-781.46637868,0.0004014,3]
[359462757,1746040242062,-430210.48817792,0.0004014,2]
[359462758,1746040242071,-151.0,0.0004015,14]
[359462759,1746040242081,-151.0,0.0004015,14]
[359462760,1746040242090,-151.0,0.0004015,14]
[359462761,1746040242100,-151.0,0.0004015,14]
[359462762,1746040242109,-151.0,0.0004015,14]
[359462763,1746040242119,-151.0,0.0004015,14]
[359462764,1746040242128,-151.0,0.0004015,14]
[359462765,1746040242137,-151.0,0.0004015,14]
[359462766,1746040242146,-151.0,0.0004015,14]
[359462767,1746040242156,-151.0,0.0004015,14]
[359462768,1746040242166,-151.0,0.0004015,14]
[359462769,1746040242175,-151.0,0.0004015,14]
[359462770,1746040242185,-151.0,0.0004015,14]
[359462771,1746040242195,-151.0,0.0004015,14]
[359462772,1746040242205,-151.0,0.0004015,14]
[359462773,1746040242215,-151.0,0.0004015,14]
[359462774,1746040242225,-151.0,0.0004015,14]
[359462775,1746040242234,-151.0,0.0004015,14]
[359462776,1746040242244,-151.0,0.0004015,14]
[359462777,1746040242255,-151.0,0.0004015,14]
[359462778,1746040242265,-267.976584,0.0004015,14]
[359462779,1746040242274,-295.792728,0.0004015,14]
[359462780,1746040242283,-151.0,0.0004015,14]
[359462781,1746040242293,-151.0,0.0004015,14]
[359462782,1746040242303,-151.0,0.0004015,14]
[359462783,1746040242313,-151.0,0.0004015,14]
[359462784,1746040242324,-151.0,0.0004015,14]
[359462785,1746040242334,-213.199249,0.0004015,14]
[359462786,1746040242343,-213.199249,0.0004015,14]
[359462787,1746040242353,-213.199249,0.0004015,14]
[359462788,1746040242363,-213.199249,0.0004015,14]
[359462789,1746040242372,-213.199249,0.0004015,14]
[359462790,1746040242382,-213.199249,0.0004015,14]
[359462791,1746040242391,-213.199249,0.0004015,14]
[359462792,1746040242401,-213.199249,0.0004015,14]
[359462793,1746040242410,-213.199249,0.0004015,14]
[359462794,1746040242420,-213.199249,0.0004015,14]
[359462795,1746040242429,-213.199249,0.0004015,14]
[359462796,1746040242439,-213.199249,0.0004015,14]
[359462797,1746040242448,-1423.638007,0.0004015,2]
[359462798,1746040242458,-1423.638007,0.0004015,2]
[359462799,1746040242467,-1423.638007,0.0004015,2]
[359462800,1746040242477,-1423.638007,0.0004015,2]
[359462801,1746040242490,-1423.638007,0.0004015,2]
[359462802,1746040242500,-1423.638007,0.0004015,2]
[359462803,1746040242509,-1423.638007,0.0004015,2]
[359462804,1746040242518,-1423.638007,0.0004015,2]
[359462805,1746040242527,-1423.638007,0.0004015,2]
[359462806,1746040242537,-1423.638007,0.0004015,2]
[359462807,1746040242546,-1423.638007,0.0004015,2]
[359462808,1746040242557,-1423.638007,0.0004015,2]
[359462809,1746040242567,-456.895529,0.0004015,14]
[359462810,1746040242577,-456.895529,0.0004015,14]
[359462811,1746040242587,-456.895529,0.0004015,14]
[359462812,1746040242597,-456.895529,0.0004015,14]
[359462813,1746040242607,-456.895529,0.0004015,14]
[359462814,1746040242616,-456.895529,0.0004015,14]
[359462815,1746040242626,-456.895529,0.0004015,14]
[359462816,1746040242636,-456.895529,0.0004015,14]
[359462817,1746040242646,-456.895529,0.0004015,14]
[359462818,1746040242656,-456.895529,0.0004015,14]
[359462819,1746040242666,-456.895529,0.0004015,14]
[359462820,1746040242676,-456.895529,0.0004015,14]
[359462821,1746040242686,-3907.3318934,0.00040155,3]
[359462822,1746040242695,-216308.68349897,0.00040165,2]
[359462823,1746040242705,-32948.46924314,0.00040165,3]
[359462824,1746040242714,-5911050.15230287,0.00040166,20]
[359462825,1746040242732,-3122.1875981,0.00040166,20]
[359462826,1746040242744,-293.33861973,0.00040166,20]
[359462827,1746040242756,-152785.73907973,0.00040166,20]
[359462828,1746040242767,-336.26733391,0.00040166,20]
[359462829,1746040242779,-1599.13135451,0.00040166,20]
[359462830,1746040242791,-3579.72747579,0.00040166,20]
[359462831,1746040242802,-954.20543836,0.00040166,20]
[359462832,1746040242813,-1998.49179696,0.00040166,20]
[359462833,1746040242836,-160.0,0.00031782,2]
[359462834,1746040242845,-1848.54505005,0.000377,7]
[359462840,1746040243403,-0.01997311,0.000377,7]
[359462841,1746040243416,-1413.48618128,0.000377,7]
[359462842,1746040243428,-1073.81180279,0.000377,7]
[359462844,1746040243665,-3496.69699277,0.000377,7]
[359462845,1746040243675,-372.62856544,0.00038345,15]
[359462846,1746040243685,-7832.56,0.000395,7]
[359462847,1746040243695,-275.48,0.00039914,12]
[359462848,1746040243705,-3210.46484583,0.00040166,20]
[359462849,1746040243717,-798.50592059,0.00040166,20]
[359462850,1746040243728,-254.22,0.00040166,20]
[359462851,1746040243740,-943.09615219,0.00040166,20]
[359462855,1746040246649,-24854.26757755,0.00040166,20]
[359462856,1746040246702,-49485.19831008,0.00040166,20]
[359462857,1746040246715,-4407.87177356,0.00040166,20]
[359462859,1746040251033,-1198.65646326,0.00031782,2]
[359462860,1746040251046,-2890.06804349,0.00031782,2]
[359462861,1746040251057,-2018.94090163,0.00031782,2]
[359462879,1746041195523,-215.45519993,0.000267,2]
[359462880,1746041233127,-784.54480007,0.000267,2]
[359462881,1746041233150,-26.82145121,0.000268,2]
[359462882,1746041234126,-2159.30571271,0.000268,2]
[359462883,1746041234147,-321.72428169,0.000269,2]
[359462884,1746041234168,-159.67846778,0.000269,2]
[359462885,1746041234190,-817.564996,0.00027397,2]
[359462886,1746041234215,-225.830119,0.0002936,2]
[359462887,1746041234239,-1221.1394732,0.00029572,2]
[359462888,1746041234261,-193.188289,0.00029684,120]
[359462889,1746041234283,-300.0,0.00029766,2]
[359462890,1746041234303,-1902.1587295,0.00029767,2]
[359462891,1746041234323,-924.6145967,0.00029901,2]
[359462892,1746041234343,-1051.9709222,0.00031343,2]
[359462893,1746041234363,-752.32084037,0.00031782,2]
[359462894,1746041234383,-160.0,0.00031782,2]
[359462895,1746041234402,-160.0,0.00031782,2]
[359462896,1746041234422,-160.0,0.00031782,2]
[359462897,1746041234443,-421.37435881,0.00031796,2]
[359462898,1746041234462,-160.0,0.00031796,2]
[359462899,1746041234483,-99.91468644,0.00032089,2]
[359462900,1746041249121,-320.08531356,0.00032089,2]
[359462901,1746041249142,-817.564996,0.00033165,2]
[359462902,1746041249162,-154.04222828,0.0003324,2]
[359462903,1746041271486,-236.56658729,0.00023,2]
[359462905,1746041277091,-10.61764948,0.00023,2]
[359462907,1746041301831,-291.58136795,0.000221,2]